[Event "Titled Tuesday Blitz August 22 Early 2023"]
[White "Mekhitarian, Krikor Sevag"]
[Black "Egor_Koshulyan"]
[WhiteFideId "2107660"]
[WhiteElo "2870"]
[BlackElo "2688"]
[Result "1/2-1/2"]
[Round "10"]
[TimeControl "180+1"]
[Date "2023.08.22"]
[WhiteClock "0:00:07"]
[BlackClock "0:00:09"]
[Board "29"]

1. Nf3 {[%clk 0:03:00]}  d5 {[%clk 0:03:00]} 2. c4 {[%clk 0:03:01]}  e6 {[%clk 0:03:00]} 3. d4 {[%clk 0:03:00]}  Nf6 {[%clk 0:03:00]} 4. cxd5 {[%clk 0:03:01]}  exd5 {[%clk 0:03:01]} 5. Nc3 {[%clk 0:03:01]}  c6 {[%clk 0:03:01]} 6. Bf4 {[%clk 0:03:01]}  Bd6 {[%clk 0:02:59]} 7. Bxd6 {[%clk 0:03:02]}  Qxd6 {[%clk 0:03:00]} 8. e3 {[%clk 0:03:02]}  Bf5 {[%clk 0:03:00]} 9. Nh4 {[%clk 0:03:02]}  Bg4 {[%clk 0:02:58]} 10. Qb3 {[%clk 0:03:01]}  Qe7 {[%clk 0:02:57]} 11. h3 {[%clk 0:03:02]}  Bh5 {[%clk 0:02:57]} 12. Nf5 {[%clk 0:03:02]}  Qd7 {[%clk 0:02:47]} 13. Nxg7+ {[%clk 0:02:37]}  Kf8 {[%clk 0:02:48]} 14. Nxh5 {[%clk 0:02:25]}  Nxh5 {[%clk 0:02:49]} 15. Qd1 {[%clk 0:02:10]}  Nf6 {[%clk 0:02:48]} 16. Qf3 {[%clk 0:02:10]}  Qe6 {[%clk 0:02:48]} 17. Bd3 {[%clk 0:02:09]}  Nbd7 {[%clk 0:02:48]} 18. Ne2 {[%clk 0:02:09]}  Rg8 {[%clk 0:02:49]} 19. Ng3 {[%clk 0:02:07]}  h5 {[%clk 0:02:46]} 20. O-O-O {[%clk 0:01:42]}  c5 {[%clk 0:02:45]} 21. Kb1 {[%clk 0:01:40]}  c4 {[%clk 0:02:45]} 22. Bf5 {[%clk 0:01:39]}  Qb6 {[%clk 0:02:46]} 23. Bxd7 {[%clk 0:01:38]}  c3 {[%clk 0:02:46]} 24. b3 {[%clk 0:01:32]}  Nxd7 {[%clk 0:02:46]} 25. Qxd5 {[%clk 0:01:21]}  Rc8 {[%clk 0:02:45]} 26. Rc1 {[%clk 0:01:21]}  Nf6 {[%clk 0:02:40]} 27. Qf3 {[%clk 0:01:13]}  h4 {[%clk 0:02:39]} 28. Nf5 {[%clk 0:01:11]}  Qe6 {[%clk 0:02:33]} 29. Rc2 {[%clk 0:01:00]}  Ne4 {[%clk 0:02:33]} 30. Ka1 {[%clk 0:00:54]}  Nd2 {[%clk 0:02:34]} 31. Qf4 {[%clk 0:00:51]}  Rxg2 {[%clk 0:02:13]} 32. Nxh4 {[%clk 0:00:33]}  Rg8 {[%clk 0:00:46]} 33. Nf5 {[%clk 0:00:33]}  Rg2 {[%clk 0:00:41]} 34. Rhc1 {[%clk 0:00:23]}  Ne4 {[%clk 0:00:27]} 35. Ng3 {[%clk 0:00:17]}  Nxg3 {[%clk 0:00:18]} 36. fxg3 {[%clk 0:00:18]}  Qxh3 {[%clk 0:00:16]} 37. Qe4 {[%clk 0:00:09]}  Rxc2 {[%clk 0:00:14]} 38. Qxc2 {[%clk 0:00:09]}  Qxg3 {[%clk 0:00:14]} 39. Qe2 {[%clk 0:00:09]}  Qd6 {[%clk 0:00:10]} 40. Qd3 {[%clk 0:00:07]}  Qb4 {[%clk 0:00:09]} 41. d5 {[%clk 0:00:08]}  a5 {[%clk 0:00:07]} 42. e4 {[%clk 0:00:05]}  a4 {[%clk 0:00:07]} 43. Qc2 {[%clk 0:00:05]}  axb3 {[%clk 0:00:07]} 44. Qxb3 {[%clk 0:00:06]}  Qxe4 {[%clk 0:00:07]} 45. d6 {[%clk 0:00:05]}  Qe5 {[%clk 0:00:06]} 46. d7 {[%clk 0:00:03]}  c2+ {[%clk 0:00:06]} 47. Qb2 {[%clk 0:00:04]}  Qxb2+ {[%clk 0:00:07]} 48. Kxb2 {[%clk 0:00:04]}  Rd8 {[%clk 0:00:08]} 49. Rxc2 {[%clk 0:00:02]}  Rxd7 {[%clk 0:00:08]} 50. Rf2 {[%clk 0:00:02]}  Kg7 {[%clk 0:00:08]} 51. Kc3 {[%clk 0:00:03]}  Kg6 {[%clk 0:00:07]} 52. Rg2+ {[%clk 0:00:03]}  Kf5 {[%clk 0:00:06]} 53. Rf2+ {[%clk 0:00:04]}  Kg4 {[%clk 0:00:06]} 54. Rg2+ {[%clk 0:00:02]}  Kf3 {[%clk 0:00:07]} 55. Rg7 {[%clk 0:00:02]}  Ke4 {[%clk 0:00:04]} 56. Kc4 {[%clk 0:00:01]}  Ke5 {[%clk 0:00:05]} 57. Kb5 {[%clk 0:00:01]}  Kf6 {[%clk 0:00:05]} 58. Rg1 {[%clk 0:00:02]}  Rd2 {[%clk 0:00:05]} 59. a4 {[%clk 0:00:01]}  Rb2+ {[%clk 0:00:06]} 60. Kc5 {[%clk 0:00:02]}  Ke6 {[%clk 0:00:04]} 61. Re1+ {[%clk 0:00:02]}  Kd7 {[%clk 0:00:03]} 62. Rd1+ {[%clk 0:00:02]}  Kc7 {[%clk 0:00:03]} 63. Rf1 {[%clk 0:00:03]}  Rc2+ {[%clk 0:00:04]} 64. Kb4 {[%clk 0:00:03]}  Rb2+ {[%clk 0:00:03]} 65. Kc3 {[%clk 0:00:04]}  Ra2 {[%clk 0:00:04]} 66. Rxf7+ {[%clk 0:00:04]}  Kb6 {[%clk 0:00:05]} 67. Kb3 {[%clk 0:00:05]}  Rh2 {[%clk 0:00:05]} 68. Rf6+ {[%clk 0:00:05]}  Ka7 {[%clk 0:00:05]} 69. Rf5 {[%clk 0:00:06]}  Rh3+ {[%clk 0:00:05]} 70. Kb4 {[%clk 0:00:07]}  Rh4+ {[%clk 0:00:06]} 71. Kb5 {[%clk 0:00:07]}  Rh1 {[%clk 0:00:06]} 72. a5 {[%clk 0:00:07]}  Rb1+ {[%clk 0:00:07]} 73. Ka4 {[%clk 0:00:08]}  Ra1+ {[%clk 0:00:07]} 74. Kb5 {[%clk 0:00:09]}  Rb1+ {[%clk 0:00:08]} 75. Ka4 {[%clk 0:00:09]}  Ra1+ {[%clk 0:00:08]} 76. Kb4 {[%clk 0:00:10]}  Rb1+ {[%clk 0:00:09]} 77. Kc3 {[%clk 0:00:10]}  Rh1 {[%clk 0:00:08]} 78. Kb2 {[%clk 0:00:10]}  Rh3 {[%clk 0:00:08]} 79. Rb5 {[%clk 0:00:08]}  Ka6 {[%clk 0:00:08]} 80. Rb6+ {[%clk 0:00:09]}  Ka7 {[%clk 0:00:08]} 81. Rb3 {[%clk 0:00:08]}  Rh5 {[%clk 0:00:07]} 82. Ra3 {[%clk 0:00:06]}  Ka6 {[%clk 0:00:08]} 83. Rg3 {[%clk 0:00:04]}  Kxa5 {[%clk 0:00:06]} 84. Kb3 {[%clk 0:00:05]}  Rb5+ {[%clk 0:00:05]} 85. Ka3 {[%clk 0:00:05]}  Rf5 {[%clk 0:00:05]} 86. Rg1 {[%clk 0:00:05]}  Rf3+ {[%clk 0:00:05]} 87. Ka2 {[%clk 0:00:06]}  b5 {[%clk 0:00:03]} 88. Rh1 {[%clk 0:00:06]}  Ka4 {[%clk 0:00:04]} 89. Rh4+ {[%clk 0:00:05]}  b4 {[%clk 0:00:04]} 90. Rh1 {[%clk 0:00:06]}  Rf2+ {[%clk 0:00:04]} 91. Ka1 {[%clk 0:00:06]}  Ka3 {[%clk 0:00:04]} 92. Rg1 {[%clk 0:00:06]}  Ra2+ {[%clk 0:00:04]} 93. Kb1 {[%clk 0:00:06]}  b3 {[%clk 0:00:04]} 94. Rh1 {[%clk 0:00:06]}  Rb2+ {[%clk 0:00:04]} 95. Ka1 {[%clk 0:00:06]}  Re2 {[%clk 0:00:04]} 96. Rg1 {[%clk 0:00:07]}  Re3 {[%clk 0:00:05]} 97. Kb1 {[%clk 0:00:06]}  Kb4 {[%clk 0:00:05]} 98. Rh1 {[%clk 0:00:06]}  Kc3 {[%clk 0:00:06]} 99. Rc1+ {[%clk 0:00:06]}  Kb4 {[%clk 0:00:06]} 100. Rh1 {[%clk 0:00:07]}  Re2 {[%clk 0:00:07]} 101. Rh8 {[%clk 0:00:06]}  Re1+ {[%clk 0:00:05]} 102. Kb2 {[%clk 0:00:06]}  Re2+ {[%clk 0:00:05]} 103. Kb1 {[%clk 0:00:06]}  Kc3 {[%clk 0:00:06]} 104. Rc8+ {[%clk 0:00:06]}  Kd4 {[%clk 0:00:07]} 105. Rb8 {[%clk 0:00:06]}  Kc4 {[%clk 0:00:06]} 106. Rc8+ {[%clk 0:00:06]}  Kb4 {[%clk 0:00:07]} 107. Rb8+ {[%clk 0:00:06]}  Kc4 {[%clk 0:00:08]} 108. Rc8+ {[%clk 0:00:07]}  Kb4 {[%clk 0:00:08]} 109. Rb8+ {[%clk 0:00:07]}  Kc4 {[%clk 0:00:09]} 1/2-1/2


[Site "https://www.chess.com"]

[Event "Titled Tuesday Blitz August 22 Early 2023"]
[White "Ilamparthi A R"]
[Black "Itgelt, Khuyagtsogt"]
[WhiteFideId "45015775"]
[BlackFideId "4902912"]
[WhiteElo "2870"]
[BlackElo "2669"]
[Result "1-0"]
[Round "10"]
[TimeControl "180+1"]
[Date "2023.08.22"]
[WhiteClock "0:00:27"]
[BlackClock "0:00:03"]
[Board "30"]

1. e4 {[%clk 0:02:58]}  e6 {[%clk 0:02:59]} 2. d3 {[%clk 0:02:57]}  d5 {[%clk 0:02:58]} 3. Nd2 {[%clk 0:02:57]}  Nf6 {[%clk 0:02:58]} 4. Ngf3 {[%clk 0:02:58]}  Nc6 {[%clk 0:02:57]} 5. c3 {[%clk 0:02:49]}  e5 {[%clk 0:02:57]} 6. Be2 {[%clk 0:02:46]}  Be7 {[%clk 0:02:53]} 7. O-O {[%clk 0:02:46]}  O-O {[%clk 0:02:53]} 8. b4 {[%clk 0:02:46]}  a6 {[%clk 0:02:53]} 9. Rb1 {[%clk 0:02:45]}  Re8 {[%clk 0:02:47]} 10. a3 {[%clk 0:02:41]}  Bf8 {[%clk 0:02:47]} 11. Bb2 {[%clk 0:02:40]}  Bg4 {[%clk 0:02:35]} 12. h3 {[%clk 0:02:31]}  Bh5 {[%clk 0:02:35]} 13. Qc2 {[%clk 0:02:30]}  h6 {[%clk 0:02:19]} 14. Rfe1 {[%clk 0:02:23]}  Qd7 {[%clk 0:02:13]} 15. Nf1 {[%clk 0:02:20]}  Bg6 {[%clk 0:02:11]} 16. Ng3 {[%clk 0:02:19]}  Rad8 {[%clk 0:02:09]} 17. Rbd1 {[%clk 0:02:12]}  b5 {[%clk 0:02:04]} 18. Nh4 {[%clk 0:02:10]}  Bh7 {[%clk 0:02:04]} 19. Bc1 {[%clk 0:02:03]}  Ne7 {[%clk 0:02:00]} 20. Qb3 {[%clk 0:01:55]}  c6 {[%clk 0:01:53]} 21. a4 {[%clk 0:01:47]}  g5 {[%clk 0:01:51]} 22. Nf3 {[%clk 0:01:41]}  Qc7 {[%clk 0:01:51]} 23. d4 {[%clk 0:01:35]}  Nxe4 {[%clk 0:01:24]} 24. Nxe4 {[%clk 0:01:31]}  Bxe4 {[%clk 0:01:24]} 25. Nxe5 {[%clk 0:01:32]}  Bg7 {[%clk 0:01:19]} 26. Nd3 {[%clk 0:01:26]}  Bxd3 {[%clk 0:01:08]} 27. Bxd3 {[%clk 0:01:27]}  Nc8 {[%clk 0:01:09]} 28. Qc2 {[%clk 0:01:24]}  Nd6 {[%clk 0:01:07]} 29. h4 {[%clk 0:01:17]}  Bf6 {[%clk 0:00:58]} 30. hxg5 {[%clk 0:01:09]}  hxg5 {[%clk 0:00:57]} 31. g3 {[%clk 0:01:09]}  Kg7 {[%clk 0:00:57]} 32. Kg2 {[%clk 0:01:10]}  Rxe1 {[%clk 0:00:55]} 33. Rxe1 {[%clk 0:01:10]}  Rh8 {[%clk 0:00:54]} 34. Qe2 {[%clk 0:01:05]}  Qd7 {[%clk 0:00:45]} 35. Rh1 {[%clk 0:00:51]}  Rxh1 {[%clk 0:00:44]} 36. Kxh1 {[%clk 0:00:52]}  Qh3+ {[%clk 0:00:17]} 37. Kg1 {[%clk 0:00:51]}  bxa4 {[%clk 0:00:07]} 38. Qa2 {[%clk 0:00:46]}  Ne4 {[%clk 0:00:05]} 39. Bxe4 {[%clk 0:00:42]}  dxe4 {[%clk 0:00:06]} 40. Qxa4 {[%clk 0:00:43]}  Qg4 {[%clk 0:00:05]} 41. Be3 {[%clk 0:00:40]}  Qf3 {[%clk 0:00:04]} 42. Qxa6 {[%clk 0:00:40]}  Qd1+ {[%clk 0:00:04]} 43. Qf1 {[%clk 0:00:40]}  Qb3 {[%clk 0:00:02]} 44. Qc1 {[%clk 0:00:39]}  g4 {[%clk 0:00:01]} 45. Kg2 {[%clk 0:00:38]}  Kg6 {[%clk 0:00:02]} 46. Qd2 {[%clk 0:00:38]}  Qd5 {[%clk 0:00:02]} 47. Qe2 {[%clk 0:00:38]}  Qf5 {[%clk 0:00:02]} 48. c4 {[%clk 0:00:37]}  Be7 {[%clk 0:00:03]} 49. b5 {[%clk 0:00:27]}  cxb5 {[%clk 0:00:03]} 50. cxb5 {[%clk 0:00:28]}  Bd8 {[%clk 0:00:04]} 51. Bf4 {[%clk 0:00:28]}  Kh5 {[%clk 0:00:01]} 52. Qc4 {[%clk 0:00:26]}  e3 {[%clk 0:00:02]} 53. Bxe3 {[%clk 0:00:24]}  Qe4+ {[%clk 0:00:01]} 54. Kh2 {[%clk 0:00:24]}  Kg6 {[%clk 0:00:02]} 55. Qc6+ {[%clk 0:00:24]}  Qxc6 {[%clk 0:00:02]} 56. bxc6 {[%clk 0:00:25]}  Kf5 {[%clk 0:00:02]} 57. Bf4 {[%clk 0:00:25]}  Ke4 {[%clk 0:00:02]} 58. c7 {[%clk 0:00:25]}  Bxc7 {[%clk 0:00:03]} 59. Bxc7 {[%clk 0:00:26]}  Kxd4 {[%clk 0:00:04]} 60. Bf4 {[%clk 0:00:27]}  Ke4 {[%clk 0:00:03]} 61. Kg2 {[%clk 0:00:27]} 1-0


[Site "https://www.chess.com"]

[Event "Titled Tuesday Blitz August 22 Early 2023"]
[White "JeRoma71"]
[Black "Piesik, Piotr"]
[BlackFideId "1136194"]
[WhiteElo "2865"]
[BlackElo "2665"]
[Result "1-0"]
[Round "10"]
[TimeControl "180+1"]
[Date "2023.08.22"]
[WhiteClock "0:02:31"]
[BlackClock "0:00:48"]
[Board "32"]

1. a3 {[%clk 0:03:00]}  g6 {[%clk 0:02:54]} 2. h4 {[%clk 0:02:59]}  h5 {[%clk 0:02:54]} 3. d4 {[%clk 0:02:58]}  Bg7 {[%clk 0:02:54]} 4. Nf3 {[%clk 0:02:58]}  d5 {[%clk 0:02:51]} 5. Bg5 {[%clk 0:02:57]}  c5 {[%clk 0:02:49]} 6. e3 {[%clk 0:02:57]}  Nc6 {[%clk 0:02:48]} 7. c3 {[%clk 0:02:56]}  cxd4 {[%clk 0:02:46]} 8. exd4 {[%clk 0:02:56]}  Bg4 {[%clk 0:02:45]} 9. Nbd2 {[%clk 0:02:56]}  Qb6 {[%clk 0:02:45]} 10. Qb3 {[%clk 0:02:55]}  Qxb3 {[%clk 0:02:45]} 11. Nxb3 {[%clk 0:02:56]}  Bxf3 {[%clk 0:02:45]} 12. gxf3 {[%clk 0:02:56]}  e6 {[%clk 0:02:42]} 13. Nc5 {[%clk 0:02:56]}  Nge7 {[%clk 0:02:07]} 14. Nxb7 {[%clk 0:02:53]}  Rb8 {[%clk 0:01:57]} 15. Ba6 {[%clk 0:02:50]}  O-O {[%clk 0:01:53]} 16. b4 {[%clk 0:02:50]}  Nf5 {[%clk 0:01:50]} 17. Nc5 {[%clk 0:02:46]}  Ncxd4 {[%clk 0:01:19]} 18. cxd4 {[%clk 0:02:45]}  Nxd4 {[%clk 0:01:20]} 19. Rc1 {[%clk 0:02:33]}  Nxf3+ {[%clk 0:01:16]} 20. Ke2 {[%clk 0:02:32]}  Nxg5 {[%clk 0:01:15]} 21. hxg5 {[%clk 0:02:33]}  Bb2 {[%clk 0:01:03]} 22. Nd7 {[%clk 0:02:31]}  Bxc1 {[%clk 0:00:48]} 23. Rxc1 {[%clk 0:02:31]} 1-0


[Site "https://www.chess.com"]

[Event "Titled Tuesday Blitz August 22 Early 2023"]
[White "Nasir, Zehn"]
[Black "Rustemov, Alexander"]
[WhiteFideId "2613239"]
[BlackFideId "4119002"]
[WhiteElo "2661"]
[BlackElo "2863"]
[Result "1/2-1/2"]
[Round "10"]
[TimeControl "180+1"]
[Date "2023.08.22"]
[WhiteClock "0:00:06"]
[BlackClock "0:00:05"]
[Board "33"]

1. d4 {[%clk 0:02:55]}  g6 {[%clk 0:02:58]} 2. Nc3 {[%clk 0:02:54]}  c5 {[%clk 0:02:53]} 3. e3 {[%clk 0:02:49]}  Bg7 {[%clk 0:02:50]} 4. Nf3 {[%clk 0:02:50]}  Nf6 {[%clk 0:02:44]} 5. Bd3 {[%clk 0:02:48]}  O-O {[%clk 0:02:43]} 6. O-O {[%clk 0:02:48]}  d5 {[%clk 0:02:31]} 7. b3 {[%clk 0:02:45]}  cxd4 {[%clk 0:02:29]} 8. exd4 {[%clk 0:02:44]}  Bg4 {[%clk 0:02:27]} 9. h3 {[%clk 0:02:38]}  Bxf3 {[%clk 0:02:27]} 10. Qxf3 {[%clk 0:02:39]}  Nc6 {[%clk 0:02:27]} 11. Ne2 {[%clk 0:02:30]}  Nb4 {[%clk 0:02:14]} 12. c4 {[%clk 0:02:17]}  Nxd3 {[%clk 0:02:10]} 13. Qxd3 {[%clk 0:02:17]}  dxc4 {[%clk 0:02:03]} 14. bxc4 {[%clk 0:02:15]}  Qd7 {[%clk 0:01:50]} 15. Be3 {[%clk 0:02:12]}  Rfd8 {[%clk 0:01:48]} 16. a4 {[%clk 0:02:07]}  Ne8 {[%clk 0:01:40]} 17. Rab1 {[%clk 0:01:49]}  Nd6 {[%clk 0:01:37]} 18. a5 {[%clk 0:01:40]}  Rac8 {[%clk 0:01:34]} 19. c5 {[%clk 0:01:34]}  Nf5 {[%clk 0:01:33]} 20. Qe4 {[%clk 0:01:29]}  Qc6 {[%clk 0:01:21]} 21. Qxc6 {[%clk 0:01:24]}  bxc6 {[%clk 0:01:20]} 22. Rb7 {[%clk 0:01:19]}  a6 {[%clk 0:01:15]} 23. Rb6 {[%clk 0:01:16]}  Bxd4 {[%clk 0:00:48]} 24. Nxd4 {[%clk 0:01:07]}  Nxd4 {[%clk 0:00:48]} 25. Bxd4 {[%clk 0:01:03]}  Rxd4 {[%clk 0:00:48]} 26. Rc1 {[%clk 0:00:57]}  Ra4 {[%clk 0:00:46]} 27. Rxa6 {[%clk 0:00:57]}  Rc7 {[%clk 0:00:42]} 28. Rc2 {[%clk 0:00:52]}  Kg7 {[%clk 0:00:41]} 29. Ra8 {[%clk 0:00:50]}  e6 {[%clk 0:00:39]} 30. g3 {[%clk 0:00:42]}  g5 {[%clk 0:00:39]} 31. Kg2 {[%clk 0:00:42]}  h5 {[%clk 0:00:40]} 32. a6 {[%clk 0:00:29]}  Kf6 {[%clk 0:00:40]} 33. Rb2 {[%clk 0:00:27]}  Re7 {[%clk 0:00:29]} 34. Rbb8 {[%clk 0:00:23]}  e5 {[%clk 0:00:25]} 35. Rh8 {[%clk 0:00:19]}  e4 {[%clk 0:00:23]} 36. Rh6+ {[%clk 0:00:18]}  Kf5 {[%clk 0:00:21]} 37. Rxc6 {[%clk 0:00:16]}  Ra2 {[%clk 0:00:20]} 38. Kf1 {[%clk 0:00:09]}  e3 {[%clk 0:00:16]} 39. fxe3 {[%clk 0:00:09]}  Rxe3 {[%clk 0:00:16]} 40. Rc7 {[%clk 0:00:09]}  Rc3 {[%clk 0:00:14]} 41. Rxf7+ {[%clk 0:00:08]}  Ke4 {[%clk 0:00:13]} 42. Rf2 {[%clk 0:00:08]}  Ra1+ {[%clk 0:00:06]} 43. Kg2 {[%clk 0:00:08]}  Raa3 {[%clk 0:00:06]} 44. Re8+ {[%clk 0:00:07]}  Kd5 {[%clk 0:00:06]} 45. Rf5+ {[%clk 0:00:07]}  Kc6 {[%clk 0:00:06]} 46. Re6+ {[%clk 0:00:07]}  Kb5 {[%clk 0:00:03]} 47. c6+ {[%clk 0:00:06]}  Kb6 {[%clk 0:00:04]} 48. Rxg5 {[%clk 0:00:05]}  Rc2+ {[%clk 0:00:02]} 49. Kf1 {[%clk 0:00:05]}  Ra1+ {[%clk 0:00:02]} 50. Re1 {[%clk 0:00:05]}  Raa2 {[%clk 0:00:03]} 51. Rb1+ {[%clk 0:00:04]}  Kxa6 {[%clk 0:00:03]} 52. c7 {[%clk 0:00:03]}  Rf2+ {[%clk 0:00:03]} 53. Ke1 {[%clk 0:00:03]}  Rfe2+ {[%clk 0:00:02]} 54. Kf1 {[%clk 0:00:04]}  Rf2+ {[%clk 0:00:02]} 55. Ke1 {[%clk 0:00:04]}  Rae2+ {[%clk 0:00:03]} 56. Kd1 {[%clk 0:00:04]}  Rd2+ {[%clk 0:00:03]} 57. Ke1 {[%clk 0:00:04]}  Rde2+ {[%clk 0:00:04]} 58. Kd1 {[%clk 0:00:04]}  Rd2+ {[%clk 0:00:04]} 59. Ke1 {[%clk 0:00:05]}  Rfe2+ {[%clk 0:00:05]} 60. Kf1 {[%clk 0:00:05]}  Rf2+ {[%clk 0:00:05]} 61. Ke1 {[%clk 0:00:06]} 1/2-1/2


[Site "https://www.chess.com"]

[Event "Titled Tuesday Blitz August 22 Early 2023"]
[White "Issabayev, Dias"]
[Black "Putnam, Liam"]
[WhiteFideId "13703110"]
[BlackFideId "30938279"]
[WhiteElo "2596"]
[BlackElo "2817"]
[Result "1-0"]
[Round "10"]
[TimeControl "180+1"]
[Date "2023.08.22"]
[WhiteClock "0:01:13"]
[BlackClock "0:00:00"]
[Board "36"]

1. Nf3 {[%clk 0:02:54]}  f6 {[%clk 0:02:53]} 2. g3 {[%clk 0:02:55]}  Kf7 {[%clk 0:02:53]} 3. e4 {[%clk 0:02:51]}  e6 {[%clk 0:02:52]} 4. d4 {[%clk 0:02:51]}  d5 {[%clk 0:02:49]} 5. Nc3 {[%clk 0:02:51]}  dxe4 {[%clk 0:02:49]} 6. Nxe4 {[%clk 0:02:52]}  Nc6 {[%clk 0:02:49]} 7. Be3 {[%clk 0:02:51]}  Nge7 {[%clk 0:02:48]} 8. Qd2 {[%clk 0:02:49]}  Nf5 {[%clk 0:02:47]} 9. Bc4 {[%clk 0:02:46]}  Nce7 {[%clk 0:02:18]} 10. O-O-O {[%clk 0:02:33]}  Nd5 {[%clk 0:02:18]} 11. g4 {[%clk 0:02:26]}  Nd6 {[%clk 0:02:11]} 12. Bd3 {[%clk 0:02:20]}  Nxe4 {[%clk 0:02:07]} 13. Bxe4 {[%clk 0:02:21]}  Bd6 {[%clk 0:02:07]} 14. c4 {[%clk 0:02:17]}  Nxe3 {[%clk 0:01:58]} 15. fxe3 {[%clk 0:02:18]}  g6 {[%clk 0:01:58]} 16. h4 {[%clk 0:02:17]}  Kg7 {[%clk 0:01:45]} 17. c5 {[%clk 0:02:08]}  Be7 {[%clk 0:01:44]} 18. h5 {[%clk 0:02:08]}  Qe8 {[%clk 0:01:44]} 19. Qh2 {[%clk 0:02:04]}  g5 {[%clk 0:01:39]} 20. h6+ {[%clk 0:02:03]}  Kf8 {[%clk 0:01:39]} 21. Qxc7 {[%clk 0:02:03]}  Qd8 {[%clk 0:01:30]} 22. Qg3 {[%clk 0:01:50]}  Bd7 {[%clk 0:01:17]} 23. Nxg5 {[%clk 0:01:47]}  fxg5 {[%clk 0:01:12]} 24. Rhf1+ {[%clk 0:01:40]}  Bf6 {[%clk 0:00:55]} 25. Bxb7 {[%clk 0:01:37]}  Rb8 {[%clk 0:00:43]} 26. Rxf6+ {[%clk 0:01:32]}  Qxf6 {[%clk 0:00:23]} 27. Qxb8+ {[%clk 0:01:30]}  Kf7 {[%clk 0:00:23]} 28. Qc7 {[%clk 0:01:28]}  Rd8 {[%clk 0:00:17]} 29. c6 {[%clk 0:01:27]}  Qe7 {[%clk 0:00:15]} 30. Rf1+ {[%clk 0:01:23]}  Kg8 {[%clk 0:00:07]} 31. cxd7 {[%clk 0:01:21]}  Rxd7 {[%clk 0:00:08]} 32. Qb8+ {[%clk 0:01:22]}  Rd8 {[%clk 0:00:08]} 33. Qe5 {[%clk 0:01:19]}  Rd7 {[%clk 0:00:03]} 34. Be4 {[%clk 0:01:15]}  Rc7+ {[%clk 0:00:03]} 35. Kb1 {[%clk 0:01:16]}  Rc8 {[%clk 0:00:00]} 36. Bd5 {[%clk 0:01:13]} 1-0


[Site "https://www.chess.com"]

[Event "Titled Tuesday Blitz August 22 Early 2023"]
[White "Bauman_Guy"]
[Black "Garakov, Mikhael"]
[BlackFideId "4169034"]
[WhiteElo "2813"]
[BlackElo "2612"]
[Result "1-0"]
[Round "10"]
[TimeControl "180+1"]
[Date "2023.08.22"]
[WhiteClock "0:02:12"]
[BlackClock "0:00:08"]
[Board "37"]

1. e4 {[%clk 0:03:00]}  c5 {[%clk 0:03:00]} 2. Nf3 {[%clk 0:03:00]}  e6 {[%clk 0:03:00]} 3. d4 {[%clk 0:03:00]}  cxd4 {[%clk 0:03:01]} 4. Nxd4 {[%clk 0:03:01]}  Nc6 {[%clk 0:03:01]} 5. Nc3 {[%clk 0:03:01]}  Qc7 {[%clk 0:03:02]} 6. g3 {[%clk 0:03:02]}  a6 {[%clk 0:03:02]} 7. Bg2 {[%clk 0:03:02]}  Nf6 {[%clk 0:03:03]} 8. O-O {[%clk 0:03:02]}  Be7 {[%clk 0:03:03]} 9. Re1 {[%clk 0:02:59]}  O-O {[%clk 0:03:03]} 10. Nxc6 {[%clk 0:02:58]}  dxc6 {[%clk 0:03:04]} 11. e5 {[%clk 0:02:59]}  Rd8 {[%clk 0:03:05]} 12. Qe2 {[%clk 0:02:59]}  Nd5 {[%clk 0:03:05]} 13. Ne4 {[%clk 0:02:52]}  Qxe5 {[%clk 0:03:04]} 14. c4 {[%clk 0:02:52]}  Nb4 {[%clk 0:03:02]} 15. Bf4 {[%clk 0:02:52]}  Qa5 {[%clk 0:03:01]} 16. a3 {[%clk 0:02:51]}  Nd3 {[%clk 0:02:54]} 17. Bd2 {[%clk 0:02:52]}  Qc7 {[%clk 0:02:46]} 18. Red1 {[%clk 0:02:48]}  Nxb2 {[%clk 0:02:19]} 19. Rdb1 {[%clk 0:02:48]}  Nd3 {[%clk 0:02:12]} 20. Bc3 {[%clk 0:02:48]}  f5 {[%clk 0:01:24]} 21. Nd2 {[%clk 0:02:48]}  e5 {[%clk 0:01:22]} 22. Nb3 {[%clk 0:02:38]}  e4 {[%clk 0:01:11]} 23. c5 {[%clk 0:02:36]}  a5 {[%clk 0:01:09]} 24. a4 {[%clk 0:02:31]}  Be6 {[%clk 0:00:25]} 25. Nd4 {[%clk 0:02:26]}  Qd7 {[%clk 0:00:25]} 26. Rxb7 {[%clk 0:02:20]}  Qxb7 {[%clk 0:00:24]} 27. Nxe6 {[%clk 0:02:21]}  Rd5 {[%clk 0:00:22]} 28. g4 {[%clk 0:02:15]}  Qd7 {[%clk 0:00:17]} 29. gxf5 {[%clk 0:02:15]}  Nxc5 {[%clk 0:00:17]} 30. Qg4 {[%clk 0:02:11]}  Nxe6 {[%clk 0:00:16]} 31. fxe6 {[%clk 0:02:11]}  Rg5 {[%clk 0:00:12]} 32. Qxg5 {[%clk 0:02:11]}  Bxg5 {[%clk 0:00:08]} 33. exd7 {[%clk 0:02:12]} 1-0


[Site "https://www.chess.com"]

[Event "Titled Tuesday Blitz August 22 Early 2023"]
[White "Orozbaev, Eldiar"]
[Black "Eynullayev, Altay"]
[WhiteFideId "13802240"]
[BlackFideId "13413562"]
[WhiteElo "2802"]
[BlackElo "2585"]
[Result "1-0"]
[Round "10"]
[TimeControl "180+1"]
[Date "2023.08.22"]
[WhiteClock "0:01:49"]
[BlackClock "0:00:12"]
[Board "39"]

1. e4 {[%clk 0:03:00]}  c5 {[%clk 0:02:59]} 2. c3 {[%clk 0:03:00]}  Nf6 {[%clk 0:02:58]} 3. e5 {[%clk 0:03:01]}  Nd5 {[%clk 0:02:59]} 4. d4 {[%clk 0:03:01]}  cxd4 {[%clk 0:03:00]} 5. cxd4 {[%clk 0:03:02]}  d6 {[%clk 0:03:00]} 6. Nf3 {[%clk 0:03:02]}  Nc6 {[%clk 0:02:58]} 7. Bc4 {[%clk 0:03:03]}  dxe5 {[%clk 0:02:56]} 8. Nxe5 {[%clk 0:03:02]}  e6 {[%clk 0:02:55]} 9. O-O {[%clk 0:03:01]}  Be7 {[%clk 0:02:55]} 10. Nxc6 {[%clk 0:03:00]}  bxc6 {[%clk 0:02:55]} 11. Nc3 {[%clk 0:03:00]}  O-O {[%clk 0:02:55]} 12. Bd3 {[%clk 0:02:59]}  a5 {[%clk 0:02:50]} 13. Qe2 {[%clk 0:02:54]}  Nb4 {[%clk 0:02:45]} 14. Rd1 {[%clk 0:02:53]}  Nxd3 {[%clk 0:02:43]} 15. Qxd3 {[%clk 0:02:54]}  Ba6 {[%clk 0:02:42]} 16. Qg3 {[%clk 0:02:52]}  Rb8 {[%clk 0:02:24]} 17. Ne4 {[%clk 0:02:47]}  Re8 {[%clk 0:02:19]} 18. Bh6 {[%clk 0:02:27]}  Bf8 {[%clk 0:02:19]} 19. Bg5 {[%clk 0:02:22]}  Be7 {[%clk 0:02:17]} 20. Bf4 {[%clk 0:02:18]}  Rxb2 {[%clk 0:01:57]} 21. Bc7 {[%clk 0:02:09]}  Qd5 {[%clk 0:01:56]} 22. Be5 {[%clk 0:02:06]}  g6 {[%clk 0:01:40]} 23. Qf4 {[%clk 0:02:01]}  Re2 {[%clk 0:00:35]} 24. Nf6+ {[%clk 0:01:57]}  Bxf6 {[%clk 0:00:32]} 25. Qxf6 {[%clk 0:01:56]}  Rxe5 {[%clk 0:00:31]} 26. dxe5 {[%clk 0:01:55]}  Qe4 {[%clk 0:00:29]} 27. Rd7 {[%clk 0:01:53]}  Rf8 {[%clk 0:00:28]} 28. Rad1 {[%clk 0:01:52]}  Qe2 {[%clk 0:00:21]} 29. Rd8 {[%clk 0:01:49]}  Bd3 {[%clk 0:00:14]} 30. Rxf8+ {[%clk 0:01:48]}  Kxf8 {[%clk 0:00:12]} 31. Qd8+ {[%clk 0:01:49]} 1-0


[Site "https://www.chess.com"]